bitfinex/quotes_SOLUSD_20250307
["timestamp","ask_amount","ask_price","bid_price","bid_amount"]
[1741383485131,47.82620545,143.44,143.33,6.9769]
[1741383485132,47.82620545,143.42,143.35,47.82620545]
[1741383485647,57.72620545,143.46,143.39,47.82620545]
[1741383485834,47.82620545,143.45,143.34,1.04575289]
[1741383486034,47.82620545,143.45,143.39,47.82620545]
[1741383486242,47.82620545,143.44,143.37,47.82620545]
[1741383486630,47.82620545,143.45,143.38,47.82620545]
[1741383487329,30.64084886,143.46,143.35,6.9759]
[1741383487533,47.82620545,143.43,143.32,6.9773]
[1741383487865,57.72620545,143.46,143.39,47.82620545]
[1741383488463,9.9,143.46,143.4,47.82620545]
[1741383488656,47.82620545,143.44,143.37,54.80110545]
[1741383488855,4.9922,143.51,143.41,47.82620545]
[1741383489038,9.9,143.5,143.45,47.82620545]
[1741383489552,47.82620545,143.51,143.45,47.82620545]
[1741383489756,47.82620545,143.48,143.39,9.5388]
[1741383489949,47.82620545,143.46,143.39,47.82620545]
[1741383490138,47.82620545,143.48,143.42,47.82620545]
[1741383490333,18.64964886,143.5,143.42,47.82620545]
[1741383490541,9.9,143.51,143.44,47.82620545]
[1741383490740,9.9,143.51,143.45,47.82620545]
[1741383491248,57.72620545,143.51,143.44,47.82620545]
[1741383491554,47.82620545,143.51,143.45,47.82620545]
[1741383491737,47.82620545,143.51,143.44,47.82620545]
[1741383492151,47.82620545,143.51,143.45,6.971]
[1741383492346,47.82620545,143.52,143.45,54.79720545]
[1741383492730,47.82620545,143.52,143.45,72.22480545]
[1741383492934,47.82620545,143.53,143.46,47.82620545]
[1741383493132,28.54964886,143.56,143.49,47.82620545]
[1741383493133,47.82620545,143.56,143.49,47.82620545]
[1741383493359,47.82620545,143.58,143.51,47.82620545]
[1741383493733,47.82620545,143.56,143.46,1.04525827]
[1741383493952,47.82620545,143.56,143.49,47.82620545]
[1741383494167,47.82620545,143.57,143.51,47.82620545]
[1741383494456,47.82620545,143.56,143.5,47.82620545]
[1741383494758,47.82620545,143.57,143.5,47.82620545]
[1741383495136,47.82620545,143.56,143.5,47.82620545]
[1741383495654,47.82620545,143.53,143.45,9.4282]
[1741383495834,47.82620545,143.51,143.4,9.2484]
[1741383496033,47.82620545,143.49,143.43,47.82620545]
[1741383496263,47.82620545,143.44,143.38,47.82620545]
[1741383496756,9.88,143.47,143.37,19.69543667]
[1741383497061,47.82620545,143.49,143.43,47.82620545]
[1741383498460,47.82620545,143.49,143.42,47.82620545]
[1741383498848,47.82620545,143.49,143.43,47.82620545]
[1741383499045,9.88,143.52,143.41,1.04547847]
[1741383499249,47.82620545,143.47,143.39,6.9738]
[1741383499451,47.82620545,143.46,143.39,54.80000545]
[1741383499769,17.196,143.52,143.39,24.4087]
[1741383499965,47.82620545,143.51,143.44,47.82620545]
[1741383500165,47.82620545,143.51,143.4,1.04542822]
[1741383500467,47.82620545,143.5,143.43,47.82620545]
[1741383501042,47.82620545,143.44,143.36,47.82620545]
[1741383501244,9.88,143.43,143.31,7.0107]
[1741383501647,9.88,143.43,143.31,24.4554]
[1741383501858,47.82620545,143.42,143.36,47.82620545]
[1741383502044,47.82620545,143.4,143.33,47.82620545]
[1741383502566,2.0919,143.41,143.34,47.82620545]
[1741383502761,2.0919,143.41,143.36,47.82620545]
[1741383504063,2.0919,143.41,143.34,47.82620545]
[1741383504064,49.91810545,143.41,143.34,47.82620545]
[1741383504363,47.82620545,143.43,143.36,47.82620545]
[1741383504553,47.82620545,143.46,143.39,47.82620545]
[1741383504748,47.82620545,143.44,143.37,47.82620545]
[1741383504951,47.82620545,143.42,143.36,47.82620545]
[1741383505156,47.82620545,143.42,143.35,47.82620545]
[1741383505354,47.82620545,143.41,143.35,47.82620545]
[1741383505551,47.82620545,143.41,143.32,6.9772]
[1741383505754,2.0921,143.39,143.34,47.82620545]
[1741383506561,47.82620545,143.42,143.35,47.82620545]
[1741383506769,47.82620545,143.43,143.36,47.82620545]
[1741383507869,49.91790545,143.42,143.37,0.033]
[1741383508179,47.82620545,143.41,143.37,0.033]
[1741383508387,47.82620545,143.4,143.37,0.033]
[1741383508553,47.82620545,143.41,143.37,0.033]
[1741383509579,2.092,143.4,143.37,0.033]
[1741383509971,47.82620545,143.45,143.39,47.82620545]
[1741383510286,47.82620545,143.44,143.37,47.85920545]
[1741383510572,47.82620545,143.43,143.37,47.85920545]
[1741383510889,9.88,143.46,143.4,47.82620545]
[1741383511181,47.82620545,143.43,143.37,0.033]
[1741383511489,31.95715776,143.42,143.37,0.033]
[1741383511771,34.04905776,143.41,143.37,0.033]
[1741383511948,31.95715776,143.38,143.37,0.033]
[1741383512148,41.81715776,143.38,143.37,0.033]
[1741383512345,60.46680662,143.38,143.31,0.033]
[1741383512585,31.95715776,143.34,143.31,0.033]
[1741383512750,9.86,143.38,143.31,7.0108]
[1741383513155,9.86,143.38,143.31,0.033]
[1741383513376,2.0919,143.41,143.31,7.0108]
[1741383513573,7.3216,143.41,143.31,7.0106]
[1741383513758,47.9300055,143.39,143.32,47.9300055]
[1741383513963,47.9300055,143.38,143.32,47.9300055]
[1741383514153,47.9300055,143.38,143.31,0.033]
[1741383514879,47.9300055,143.41,143.34,47.9300055]
[1741383515178,2.0916,143.43,143.34,47.9300055]
[1741383515179,9.89,143.49,143.4,47.9300055]
[1741383515373,47.9300055,143.48,143.42,47.9300055]
[1741383515775,50.0210055,143.48,143.41,47.9300055]
[1741383515992,47.9300055,143.47,143.36,73.38962491]
[1741383516178,47.9300055,143.42,143.35,47.9300055]
[1741383516482,47.9300055,143.42,143.34,6.9764]
[1741383516653,47.9300055,143.42,143.35,47.9300055]
[1741383516850,7.3182,143.48,143.38,47.9300055]
[1741383517057,47.9300055,143.45,143.38,47.9300055]
[1741383517351,9.86,143.46,143.4,47.9300055]
[1741383517551,9.86,143.46,143.42,47.9300055]
[1741383517864,47.9600055,143.49,143.4,6.9735]
[1741383518176,47.9300055,143.48,143.4,6.9735]
[1741383518366,47.9300055,143.47,143.4,54.9035055]
[1741383518567,47.9300055,143.48,143.41,47.9300055]
[1741383518873,47.9300055,143.48,143.42,47.9300055]
[1741383519072,0.03,143.49,143.43,47.9300055]
[1741383519257,0.03,143.49,143.44,47.9300055]
[1741383519459,0.03,143.49,143.4,6.9735]
[1741383519671,0.03,143.49,143.43,47.9300055]
[1741383519871,0.03,143.49,143.45,47.9300055]
[1741383520068,0.03,143.49,143.47,47.9300055]
[1741383521195,47.9600055,143.49,143.4,6.9735]
[1741383521388,47.9600055,143.49,143.42,47.9300055]
[1741383521587,47.9300055,143.48,143.41,47.9300055]
[1741383522057,18.67964886,143.49,143.42,47.9300055]
[1741383522262,47.9300055,143.48,143.41,47.9300055]
[1741383522495,0.03,143.49,143.43,47.9300055]
[1741383522696,0.03,143.49,143.45,47.9300055]
[1741383523181,0.03,143.49,143.39,34.2758]
[1741383523182,47.9600055,143.49,143.39,16.8409]
[1741383523363,47.9600055,143.49,143.41,47.9300055]
[1741383523364,47.9300055,143.48,143.41,47.9300055]
[1741383523980,47.9300055,143.47,143.41,47.9300055]
[1741383524163,2.0911,143.46,143.4,47.9300055]
[1741383524967,2.0911,143.46,143.39,9.8671]
[1741383524968,55.2490055,143.46,143.39,9.8671]
[1741383525163,55.2490055,143.46,143.39,57.7971055]
[1741383525363,2.0911,143.46,143.41,47.9300055]
[1741383525682,9.84,143.47,143.45,47.9300055]
[1741383525885,0.03,143.49,143.45,47.9300055]
[1741383526268,0.03,143.49,143.47,47.9300055]
[1741383526471,0.03,143.49,143.46,47.9300055]
[1741383526782,0.03,143.49,143.45,47.9300055]
[1741383527364,0.03,143.49,143.43,47.9300055]
[1741383527681,47.9600055,143.49,143.42,47.9300055]
[1741383527885,47.9600055,143.49,143.43,47.9300055]
[1741383528270,2.0908,143.48,143.42,47.9300055]
[1741383528486,47.9300055,143.43,143.37,47.9300055]
[1741383528663,47.9300055,143.41,143.34,9.4324]
[1741383528871,47.9300055,143.39,143.32,47.9300055]
[1741383529099,9.84,143.39,143.31,0.033]
[1741383529297,35.12644886,143.38,143.23,1.8822077]
[1741383529509,18.64964886,143.32,143.23,1.8822077]
[1741383529801,18.64964886,143.3,143.23,1.8822077]
[1741383530200,47.9300055,143.24,143.23,1.8822077]
[1741383530366,76.41965436,143.24,143.23,7.7e-06]
[1741383531191,76.41965436,143.24,143.19,21.58165196]
[1741383531192,18.64964886,143.23,143.19,21.58165196]
[1741383531370,114.50965986,143.22,143.19,21.58165196]
[1741383531702,18.64964886,143.21,143.19,4.70477645]
[1741383531874,47.9300055,143.2,143.19,4.70477645]
[1741383532276,18.64964886,143.19,143.14,41.73119357]
[1741383532472,47.9300055,143.17,143.14,41.73119357]
[1741383532692,57.7700055,143.17,143.14,41.73119357]
[1741383532999,47.9300055,143.17,143.14,41.73119357]
[1741383533170,9.84,143.17,143.14,41.73119357]
[1741383533372,9.84,143.17,143.1,47.9300055]
[1741383533373,57.7700055,143.17,143.1,47.9300055]
[1741383534094,124.34965986,143.17,143.05,4.5411]
[1741383534390,47.9300055,143.06,142.95,47.9300055]
[1741383534591,47.9300055,143.06,142.94,1.8822077]
[1741383534592,47.9300055,143.01,142.94,1.8822077]
[1741383534767,47.9300055,142.99,142.94,1.8822077]
[1741383535171,82.7453409,143.08,142.94,1.8822077]
[1741383535391,47.9300055,143.01,142.94,1.8822077]
[1741383535689,47.9300055,142.98,142.94,1.8822077]
[1741383536098,9.84,143.02,142.95,47.9300055]
[1741383536483,9.84,143.02,142.96,47.9300055]
[1741383536798,9.84,143.02,142.98,47.9300055]
[1741383536968,10.38443747,143.09,142.94,56.8079132]
[1741383536969,10.38443747,143.09,143.0,47.9300055]
[1741383537174,10.38443747,143.09,142.96,18.64964886]
[1741383537175,47.52815647,143.09,142.99,18.64964886]
[1741383537377,47.52815647,143.09,143.03,47.9300055]
[1741383537698,14.21362879,143.08,142.99,1.04852522]
[1741383537873,14.21362879,143.08,142.99,312.0]
[1741383538083,14.21362879,143.08,143.0,1.04811974]
[1741383538400,14.21362879,143.08,142.94,65.4198055]
[1741383538401,2.0,143.06,142.94,65.4198055]
[1741383538611,11.84,143.05,142.95,6.9954]
[1741383538813,59.7700055,143.05,142.98,47.9300055]
[1741383539105,11.84,143.05,142.99,47.9300055]
[1741383539280,11.84,143.05,142.94,54.9257055]
[1741383539281,18.64964886,143.04,142.94,54.9257055]
[1741383539597,2.0,143.02,142.97,47.9300055]
[1741383540078,69.62817958,143.04,142.97,47.9300055]
[1741383540284,2.0,143.01,142.94,1.0118735]
[1741383540481,2.0,143.03,142.99,47.9300055]
[1741383540806,2.0,143.03,142.94,48.941879]
[1741383540999,2.0,143.01,142.95,47.9300055]
[1741383541187,2.0,143.0,142.95,47.9300055]
[1741383541485,2.0,142.99,142.94,1.0118735]
[1741383541685,9.84,142.98,142.95,47.9300055]
[1741383541884,2.0,143.06,142.97,47.9300055]
[1741383542100,2.0,143.04,142.99,47.9300055]
[1741383542419,2.0,143.01,142.91,3.7442735]
[1741383542586,49.9300055,142.99,142.92,47.9300055]
[1741383542784,2.0,142.97,142.93,47.9300055]
[1741383543295,9.84,143.02,142.96,47.9300055]
[1741383543544,151.24,143.07,142.94,47.9300055]
[1741383543545,9.84,143.04,143.01,47.9300055]
[1741383543807,2.0,143.09,143.03,47.9300055]
[1741383543981,2.0,143.09,142.94,66.57965436]
[1741383543982,2.0,143.05,142.95,1.04858216]
[1741383544179,2.0,143.05,143.0,47.9300055]
[1741383544375,47.9300055,143.07,143.01,47.9300055]
[1741383544580,2.0964,143.11,143.01,47.9300055]
[1741383544581,2.0,143.11,143.05,47.9300055]
[1741383544800,9.84,143.1,143.06,47.9300055]
[1741383544984,9.84,143.1,143.09,47.9300055]
[1741383545191,11.84,143.1,143.07,47.9300055]
[1741383545581,9.84,143.1,143.09,47.9300055]
[1741383545789,2.0,143.14,143.09,47.9300055]
[1741383546000,9.84,143.16,143.11,47.9300055]
[1741383546207,2.0,143.14,143.02,10.57017865]
[1741383546388,9.84,143.15,143.02,10.57017865]
[1741383546389,2.0,143.13,143.09,47.9300055]
[1741383546596,2.0,143.13,143.02,10.57017865]
[1741383546597,9.84,143.15,143.11,47.9300055]
[1741383546805,2.0,143.18,143.12,47.9300055]
[1741383546987,2.0,143.14,143.12,47.9300055]
[1741383547182,9.84,143.17,143.13,47.9300055]
[1741383547423,2.0,143.19,143.15,47.9300055]
[1741383547594,9.84,143.18,143.16,47.9300055]
[1741383547977,9.84,143.18,143.08,47.9300055]
[1741383548184,9.84,143.18,143.17,47.9300055]
[1741383548404,35.43598551,143.21,143.17,47.9300055]
[1741383548617,2.0,143.21,143.19,47.9300055]
[1741383548817,2.0,143.21,143.18,47.9300055]
[1741383549111,2.0,143.22,143.19,47.9300055]
[1741383549311,9.84,143.23,143.2,47.9300055]
[1741383549607,2.0,143.28,143.22,47.9300055]
[1741383549816,9.84,143.26,143.23,47.9300055]
[1741383550019,2.0,143.24,143.21,47.9300055]
[1741383550227,2.0,143.28,143.23,47.9300055]
[1741383550412,9.84,143.27,143.23,47.9300055]
[1741383550938,9.84,143.27,143.24,47.9300055]
[1741383551113,2.0,143.2,143.19,1.04694755]
[1741383551305,11.84,143.2,143.14,52.4685055]
[1741383551623,11.84,143.2,143.14,4.5385]
[1741383551624,9.84,143.2,143.14,4.5385]
[1741383551821,32.9427412,143.29,143.18,47.9300055]
[1741383552006,9.84,143.24,143.18,47.9300055]
[1741383552210,57.7700055,143.24,143.17,47.9300055]
[1741383552419,47.9300055,143.23,143.16,47.9300055]
[1741383552628,9.84,143.24,143.17,47.9300055]
[1741383552807,57.7700055,143.24,143.14,4.5385]
[1741383553012,47.9300055,143.23,143.16,47.9300055]
[1741383553212,47.9300055,143.23,143.14,4.5385]
[1741383553213,57.7700055,143.24,143.17,47.9300055]
[1741383553612,57.7700055,143.24,143.15,47.9300055]
[1741383553613,9.84,143.24,143.15,47.9300055]
[1741383553928,47.9300055,143.3,143.23,47.9300055]
[1741383554134,47.9300055,143.28,143.17,313.04733422]
[1741383554311,47.9300055,143.28,143.21,47.9300055]
[1741383554727,47.9300055,143.29,143.22,47.9300055]
[1741383554935,2.0933,143.31,143.23,47.9300055]
[1741383555111,50.0233055,143.31,143.24,47.9300055]
[1741383555524,2.0927,143.35,143.26,47.9300055]
[1741383555724,47.9300055,143.34,143.22,58.86490463]
[1741383555933,2.0927,143.35,143.22,58.86490463]
[1741383555934,59.8427055,143.35,143.28,47.9300055]
[1741383556141,2.0926,143.36,143.3,47.9300055]
[1741383556514,47.9300055,143.37,143.3,47.9300055]
[1741383556734,2.0925,143.37,143.3,47.9300055]
[1741383556933,2.0925,143.37,143.26,4.9196]
[1741383557148,47.9300055,143.35,143.28,47.9300055]
[1741383557518,47.9300055,143.36,143.29,47.9300055]
[1741383558121,47.9300055,143.33,143.26,4.9196]
[1741383558434,47.9300055,143.33,143.22,57.8182055]
[1741383558435,47.9300055,143.28,143.22,57.8182055]
[1741383558739,2.0939,143.27,143.21,47.9300055]
[1741383559152,9.82,143.28,143.23,47.9300055]
[1741383559448,9.82,143.28,143.2,11.9863]
[1741383559651,9.82,143.28,143.24,47.9300055]
[1741383559848,9.82,143.28,143.25,47.9300055]
[1741383560418,2.0933,143.32,143.26,47.9300055]
[1741383560614,47.9300055,143.3,143.2,5.0033]
[1741383560928,2.0933,143.32,143.25,47.9300055]
[1741383561131,55.2563055,143.32,143.25,47.9300055]
[1741383561434,57.7500055,143.35,143.29,47.9300055]
[1741383561748,9.82,143.35,143.29,47.9300055]
[1741383561924,9.82,143.35,143.23,22.01650277]
[1741383562124,47.9300055,143.32,143.25,47.9300055]
[1741383562328,47.9300055,143.31,143.25,47.9300055]
[1741383562627,2.0933,143.31,143.25,47.9300055]
[1741383562831,2.0933,143.31,143.26,47.9300055]
[1741383563037,2.0933,143.31,143.22,47.9300055]
[1741383563217,47.9300055,143.3,143.23,47.9300055]
[1741383563549,47.9300055,143.28,143.21,47.9300055]
[1741383563741,47.9300055,143.3,143.23,47.9300055]
[1741383563936,2.0933,143.31,143.25,47.9300055]
[1741383564142,47.9300055,143.28,143.21,47.9300055]
[1741383564446,57.7500055,143.28,143.21,47.9300055]
[1741383564641,55.2592055,143.26,143.2,5.0033]
[1741383564814,47.9300055,143.25,143.18,47.9300055]
[1741383565018,47.9300055,143.24,143.18,47.9300055]
[1741383565446,7.3292,143.26,143.18,47.9300055]
[1741383565447,47.9300055,143.25,143.18,47.9300055]
[1741383565759,2.094,143.26,143.21,47.9300055]
[1741383566262,2.094,143.26,143.22,47.9300055]
[1741383566435,2.094,143.26,143.23,47.9300055]
[1741383566631,11.9138,143.28,143.24,47.9300055]
[1741383566830,11.9138,143.28,143.23,47.9300055]
[1741383567025,17.1483,143.28,143.18,1.04696004]
[1741383567233,65.0783055,143.28,143.21,47.9300055]
[1741383567451,65.0783055,143.28,143.22,47.9300055]
[1741383567756,11.9138,143.28,143.23,47.9300055]
[1741383567919,65.0783055,143.28,143.21,47.9300055]
[1741383568320,47.9300055,143.24,143.16,9.2982]
[1741383568524,18.64964886,143.27,143.18,47.9300055]
[1741383568737,2.0943,143.24,143.18,47.9600055]
[1741383569040,2.0943,143.24,143.19,47.9300055]
[1741383569239,7.3302,143.24,143.19,47.9300055]
[1741383569435,2.0943,143.24,143.18,7.0141]
[1741383569762,2.0943,143.24,143.21,47.9300055]
[1741383569956,7.3302,143.24,143.18,0.03]
[1741383570459,47.9300055,143.23,143.18,0.03]
[1741383570834,7.3312,143.22,143.18,0.03]
[1741383571158,55.2612055,143.22,143.18,0.03]
[1741383571451,7.3312,143.22,143.18,0.03]
[1741383571759,9.82,143.28,143.19,47.9300055]
[1741383571960,47.9300055,143.26,143.19,47.9300055]
[1741383572179,47.9300055,143.26,143.2,47.9300055]
[1741383572360,47.9300055,143.24,143.18,0.03]
[1741383572562,47.9300055,143.23,143.18,0.03]
[1741383572942,2.0946,143.22,143.18,0.03]
[1741383573581,1.5946,143.22,143.18,0.03]
[1741383574070,2.0945,143.23,143.18,0.03]
[1741383574234,50.0245055,143.23,143.18,0.03]
[1741383574437,47.9300055,143.22,143.18,0.03]
[1741383574648,47.9300055,143.21,143.18,0.03]
[1741383574851,47.9300055,143.22,143.18,0.03]
[1741383575177,2.0948,143.21,143.18,0.03]
[1741383575841,2.0947,143.22,143.18,0.03]
[1741383576843,47.9300055,143.19,143.11,9.8791]
[1741383577043,47.9300055,143.16,143.11,9.8791]
[1741383577380,47.9300055,143.16,143.09,52.8679055]
[1741383577685,47.9300055,143.17,143.1,47.9300055]
[1741383577874,5.2377,143.19,143.11,47.9300055]
[1741383577875,47.9300055,143.18,143.11,47.9300055]
[1741383578383,47.9300055,143.19,143.12,47.9300055]
[1741383578607,50.0249055,143.2,143.13,47.9300055]
[1741383578880,11.8948,143.21,143.15,47.9300055]
[1741383579091,11.8948,143.21,143.14,6.986]
[1741383579261,9.8,143.21,143.15,47.9300055]
[1741383579460,59.8248055,143.21,143.14,47.9300055]
[1741383579781,47.9300055,143.25,143.18,47.9300055]
[1741383580166,59.8239055,143.27,143.2,47.9300055]
[1741383580363,17.1287,143.27,143.17,47.9300055]
[1741383580569,47.9300055,143.24,143.18,47.9300055]
[1741383581400,47.9300055,143.25,143.17,6.9847]
[1741383581577,50.0238055,143.28,143.21,47.9300055]
[1741383582492,47.9300055,143.23,143.16,17.072]
[1741383582671,47.9300055,143.26,143.19,47.9300055]
[1741383583093,47.9300055,143.26,143.2,47.9300055]
[1741383583401,47.9300055,143.26,143.16,35.58209693]
[1741383583402,47.9300055,143.26,143.19,47.9300055]
[1741383583627,2.0942,143.25,143.19,54.9136055]
[1741383584170,2.0942,143.25,143.17,6.9847]
[1741383584396,2.0942,143.25,143.19,47.9300055]
[1741383584878,50.0239055,143.27,143.2,47.9300055]
[1741383585810,50.0239055,143.27,143.2,54.9127055]
[1741383586871,2.0939,143.27,143.21,54.9122055]
[1741383587089,47.9300055,143.26,143.19,52.8201055]
[1741383587383,47.9300055,143.24,143.19,4.8901]
[1741383588006,47.9300055,143.23,143.19,4.8901]
[1741383588381,47.9300055,143.24,143.19,4.8901]
[1741383588804,47.9300055,143.2,143.13,52.8111055]
[1741383588997,2.0951,143.19,143.13,52.8111055]
[1741383589192,2.0951,143.19,143.13,59.7976055]
[1741383590200,2.0949,143.2,143.13,11.8676]
[1741383590510,2.0949,143.2,143.15,47.9300055]
[1741383590821,2.0948,143.21,143.16,47.9300055]
[1741383591121,2.0948,143.21,143.15,54.9156055]
[1741383591804,9.78,143.22,143.18,47.9300055]
[1741383593195,9.78,143.22,143.19,6.9837]
[1741383593391,9.78,143.22,143.16,1.0471646]
[1741383593704,11.8747,143.22,143.16,47.9300055]
[1741383594611,0.033,143.28,143.15,18.64964886]
[1741383594785,2.0939,143.27,143.21,47.9300055]
[1741383595109,47.9300055,143.24,143.17,47.9300055]
[1741383595283,47.9630055,143.24,143.17,47.9300055]
[1741383595786,0.033,143.24,143.19,47.9300055]
[1741383595985,0.033,143.24,143.21,47.9300055]
[1741383596214,0.033,143.24,143.23,47.9300055]
[1741383597088,0.033,143.24,143.23,54.9117055]
[1741383597411,0.033,143.24,143.18,47.9300055]
[1741383597614,0.033,143.24,143.17,6.9847]
[1741383597615,47.9630055,143.24,143.17,6.9847]
[1741383597905,47.9630055,143.24,143.17,54.9147055]
[1741383598107,47.9630055,143.24,143.17,47.9300055]
[1741383598485,0.033,143.24,143.2,47.9300055]
[1741383598990,0.033,143.24,143.2,54.9132055]
[1741383599910,0.033,143.24,143.2,6.9832]
[1741383600110,0.033,143.24,143.19,54.9136055]
[1741383600502,0.033,143.24,143.16,9.2496]
[1741383600829,47.9300055,143.19,143.15,0.03]
[1741383601116,0.033,143.24,143.15,0.03]
[1741383601117,47.9300055,143.2,143.15,0.03]
[1741383601297,0.033,143.24,143.15,47.9600055]
[1741383601616,47.9300055,143.2,143.15,0.03]
[1741383602089,47.9300055,143.18,143.15,0.03]
[1741383603106,2.0954,143.17,143.15,0.03]
[1741383603501,47.9300055,143.18,143.15,0.03]
[1741383603700,11.855,143.2,143.15,0.03]
[1741383604199,59.7850055,143.2,143.15,0.03]
[1741383604394,9.3407,143.28,143.17,47.9300055]
[1741383604705,9.76,143.23,143.16,9.6857]
[1741383604904,9.76,143.23,143.2,47.9300055]
[1741383605203,9.76,143.23,143.18,1.0472249]
[1741383605204,18.64964886,143.22,143.15,0.03]
[1741383605601,17.0909,143.23,143.15,0.03]
[1741383605922,47.9300055,143.17,143.15,0.03]
[1741383606211,17.0909,143.23,143.15,0.03]
[1741383606414,47.9300055,143.19,143.15,0.03]
[1741383606611,47.9300055,143.2,143.15,0.03]
[1741383606996,2.0947,143.22,143.16,47.9300055]
[1741383607208,57.6900055,143.23,143.16,47.9300055]
[1741383607408,59.7845055,143.23,143.16,47.9300055]
[1741383607910,50.0245055,143.23,143.16,47.9300055]
[1741383608220,47.9300055,143.22,143.15,54.9455055]
[1741383608420,47.9300055,143.21,143.15,47.9600055]
[1741383608599,47.9300055,143.22,143.15,47.9600055]
[1741383608786,47.9300055,143.23,143.16,47.9300055]
[1741383608983,47.9300055,143.22,143.15,54.9456055]
[1741383609285,2.0948,143.21,143.15,54.9456055]
[1741383610428,47.9300055,143.19,143.15,0.03]
[1741383610596,47.9300055,143.16,143.15,0.03]
[1741383611204,9.76,143.17,143.15,0.03]
[1741383611616,11.8554,143.17,143.15,0.03]
[1741383612098,59.7854055,143.17,143.15,0.03]
[1741383612293,47.9300055,143.16,143.15,0.03]
[1741383612493,18.64964886,143.15,143.03,21.3614]
[1741383612719,47.9300055,143.09,143.03,69.2914055]
[1741383612915,9.76,143.1,143.03,22.40965924]
[1741383613093,9.76,143.12,143.09,47.9300055]
[1741383613294,9.76,143.12,143.1,47.9300055]
[1741383614137,9.76,143.12,143.08,47.9300055]
[1741383614628,57.6900055,143.12,143.06,47.9300055]
[1741383614831,9.76,143.12,143.08,47.9300055]
[1741383615445,9.76,143.12,143.09,32.07832015]
[1741383615724,9.76,143.12,143.1,32.07832015]
[1741383615930,9.76,143.12,143.07,6.9895]
[1741383615931,9.76,143.12,143.08,32.07832015]
[1741383616428,9.76,143.12,143.09,32.07832015]
[1741383616638,9.76,143.12,143.1,32.07832015]
[1741383616828,9.76,143.12,143.06,39.06822015]
[1741383617141,9.76,143.12,143.1,32.07832015]
[1741383617341,43.91382015,143.17,143.1,39.06632015]
[1741383617552,32.07832015,143.18,143.1,6.988]
[1741383617852,183.29832015,143.22,143.15,32.07832015]
[1741383617853,41.81832015,143.22,143.15,32.07832015]
[1741383618018,9.74,143.22,143.16,32.07832015]
[1741383618658,32.07832015,143.2,143.14,32.07832015]
[1741383618933,41.81832015,143.22,143.15,32.07832015]
[1741383619148,32.07832015,143.21,143.14,32.07832015]
[1741383619439,2.0949,143.2,143.14,32.07832015]
[1741383619823,2.0948,143.21,143.15,32.07832015]
[1741383620217,0.033,143.17,143.15,32.07832015]
[1741383620619,0.033,143.17,143.16,32.07832015]
[1741383621434,0.033,143.17,143.16,58.76034354]
[1741383622644,0.033,143.17,143.16,32.07832015]
[1741383623357,0.033,143.17,143.15,32.07832015]
[1741383623528,0.033,143.17,143.13,43.42062015]
[1741383623729,0.033,143.17,143.14,32.07832015]
[1741383623936,0.033,143.17,143.16,32.07832015]
[1741383625361,0.033,143.17,143.13,4.3559]
[1741383625652,32.07832015,143.14,143.08,4.3377]
[1741383626155,0.033,143.17,143.1,18.64964886]
[1741383626343,0.033,143.17,143.12,18.64964886]
[1741383626546,0.033,143.17,143.13,1.04737201]
[1741383626737,0.033,143.17,143.12,19.69699708]
[1741383627447,0.033,143.17,143.14,32.07832015]
[1741383627653,0.033,143.17,143.15,32.07832015]
[1741383628158,0.033,143.17,143.16,50.72796901]
[1741383628539,2.0942,143.25,143.16,50.72796901]
[1741383628540,2.0941,143.26,143.17,18.64964886]
[1741383628735,11.8339,143.27,143.21,32.07832015]
[1741383628939,41.81832015,143.27,143.21,32.07832015]
[1741383629241,2.0941,143.26,143.21,48.03755105]
[1741383629447,0.033,143.28,143.23,48.03755105]
[1741383629648,0.033,143.28,143.2,1.04705191]
[1741383629847,2.1268,143.28,143.22,48.03755105]
[1741383630069,9.72,143.23,143.12,11.4175]
[1741383630371,9.72,143.23,143.12,4.4305]
[1741383631079,9.72,143.23,143.12,11.4174]
[1741383631239,48.03755105,143.21,143.14,48.03755105]
[1741383631439,50.13245105,143.2,143.13,48.03755105]
[1741383631640,2.0949,143.2,143.14,48.03755105]
[1741383632071,50.13245105,143.2,143.13,48.03755105]
[1741383632273,48.03755105,143.19,143.12,52.46805105]
[1741383632569,2.0949,143.2,143.12,52.46805105]